[Event "Titled Tuesday Blitz December 13 Early 2022"]
[White "Harsh Suresh"]
[Black "Demin, Vladimir"]
[WhiteFideId "45018464"]
[BlackFideId "4167457"]
[WhiteElo "2227"]
[BlackElo "2597"]
[Result "0-1"]
[Round "07"]
[TimeControl "180+1"]
[Date "2022.12.14"]
[WhiteClock "0:00:20"]
[BlackClock "0:00:32"]

1. Nf3 {[%clk 0:03:00]}  d5 {[%clk 0:02:44]} 2. c4 {[%clk 0:03:00]}  e6 {[%clk 0:02:42]} 3. b3 {[%clk 0:03:00]}  Nf6 {[%clk 0:02:42]} 4. Bb2 {[%clk 0:03:00]}  c5 {[%clk 0:02:42]} 5. e3 {[%clk 0:02:58]}  Nc6 {[%clk 0:02:41]} 6. cxd5 {[%clk 0:02:58]}  Nxd5 {[%clk 0:02:40]} 7. Nc3 {[%clk 0:02:57]}  a6 {[%clk 0:02:36]} 8. Be2 {[%clk 0:02:52]}  h6 {[%clk 0:02:34]} 9. O-O {[%clk 0:02:52]}  Bd7 {[%clk 0:02:29]} 10. Nxd5 {[%clk 0:02:47]}  exd5 {[%clk 0:02:28]} 11. d4 {[%clk 0:02:47]}  cxd4 {[%clk 0:02:20]} 12. Nxd4 {[%clk 0:02:47]}  Nxd4 {[%clk 0:02:18]} 13. Qxd4 {[%clk 0:02:45]}  Bc6 {[%clk 0:02:17]} 14. Rfd1 {[%clk 0:02:42]}  Qg5 {[%clk 0:02:13]} 15. Bf3 {[%clk 0:02:29]}  Rd8 {[%clk 0:02:05]} 16. h4 {[%clk 0:02:28]}  Qe7 {[%clk 0:01:54]} 17. Rac1 {[%clk 0:02:22]}  Rg8 {[%clk 0:01:45]} 18. h5 {[%clk 0:02:17]}  g6 {[%clk 0:01:40]} 19. hxg6 {[%clk 0:02:14]}  Rxg6 {[%clk 0:01:39]} 20. Qf4 {[%clk 0:02:06]}  Qd6 {[%clk 0:01:26]} 21. Be5 {[%clk 0:02:02]}  Qe6 {[%clk 0:01:22]} 22. Bh5 {[%clk 0:02:00]}  Rg5 {[%clk 0:01:19]} 23. Bc7 {[%clk 0:01:38]}  Rxh5 {[%clk 0:01:07]} 24. Bxd8 {[%clk 0:01:37]}  Kxd8 {[%clk 0:01:08]} 25. e4 {[%clk 0:01:13]}  Bd6 {[%clk 0:01:03]} 26. Qf3 {[%clk 0:00:43]}  Rg5 {[%clk 0:00:58]} 27. Rc2 {[%clk 0:00:15]}  dxe4 {[%clk 0:00:51]} 28. Qe3 {[%clk 0:00:16]}  Kc7 {[%clk 0:00:50]} 29. Rcd2 {[%clk 0:00:16]}  Be7 {[%clk 0:00:46]} 30. a4 {[%clk 0:00:16]}  Qg6 {[%clk 0:00:43]} 31. Qf4+ {[%clk 0:00:12]}  Kc8 {[%clk 0:00:38]} 32. g3 {[%clk 0:00:11]}  h5 {[%clk 0:00:37]} 33. Qe3 {[%clk 0:00:08]}  h4 {[%clk 0:00:36]} 34. Qb6 {[%clk 0:00:08]}  Qf6 {[%clk 0:00:34]} 35. Rc2 {[%clk 0:00:02]}  hxg3 {[%clk 0:00:32]} 36. fxg3 {[%clk 0:00:02]}  Rxg3+ {[%clk 0:00:31]} 37. Rg2 {[%clk 0:00:02]}  Rxg2+ {[%clk 0:00:30]} 38. Kxg2 {[%clk 0:00:03]}  Qf3+ {[%clk 0:00:30]} 39. Kg1 {[%clk 0:00:03]}  Qxd1+ {[%clk 0:00:30]} 40. Kh2 {[%clk 0:00:03]}  Qh5+ {[%clk 0:00:29]} 41. Kg3 {[%clk 0:00:03]}  Bd6+ {[%clk 0:00:28]} 42. Kf2 {[%clk 0:00:04]}  e3+ {[%clk 0:00:26]} 43. Ke1 {[%clk 0:00:02]}  Qh1+ {[%clk 0:00:26]} 44. Ke2 {[%clk 0:00:03]}  Qf3+ {[%clk 0:00:26]} 45. Kd3 {[%clk 0:00:03]}  e2+ {[%clk 0:00:25]} 46. Kd2 {[%clk 0:00:04]}  Bf4+ {[%clk 0:00:23]} 47. Kc2 {[%clk 0:00:04]}  e1=Q {[%clk 0:00:22]} 48. Qd4 {[%clk 0:00:03]}  Qed1+ {[%clk 0:00:21]} 49. Qxd1 {[%clk 0:00:02]}  Qxd1+ {[%clk 0:00:22]} 50. Kxd1 {[%clk 0:00:02]}  Bd6 {[%clk 0:00:22]} 51. Kd2 {[%clk 0:00:02]}  Bxa4 {[%clk 0:00:21]} 52. Kd3 {[%clk 0:00:02]}  Bxb3 {[%clk 0:00:19]} 53. Kd4 {[%clk 0:00:03]}  Be6 {[%clk 0:00:20]} 54. Ke4 {[%clk 0:00:04]}  Kc7 {[%clk 0:00:21]} 55. Kf3 {[%clk 0:00:05]}  b6 {[%clk 0:00:22]} 56. Ke3 {[%clk 0:00:04]}  a5 {[%clk 0:00:22]} 57. Ke4 {[%clk 0:00:05]}  a4 {[%clk 0:00:23]} 58. Kd4 {[%clk 0:00:06]}  a3 {[%clk 0:00:24]} 59. Kc3 {[%clk 0:00:07]}  a2 {[%clk 0:00:25]} 60. Kb2 {[%clk 0:00:08]}  a1=Q+ {[%clk 0:00:26]} 61. Kxa1 {[%clk 0:00:08]}  Be5+ {[%clk 0:00:25]} 62. Kb1 {[%clk 0:00:08]}  f5 {[%clk 0:00:26]} 63. Kc1 {[%clk 0:00:08]}  Kd6 {[%clk 0:00:27]} 64. Kd2 {[%clk 0:00:09]}  Bd5 {[%clk 0:00:28]} 65. Ke3 {[%clk 0:00:10]}  f4+ {[%clk 0:00:29]} 66. Kd3 {[%clk 0:00:11]}  f3 {[%clk 0:00:29]} 67. Ke3 {[%clk 0:00:12]}  b5 {[%clk 0:00:30]} 68. Kd3 {[%clk 0:00:12]}  b4 {[%clk 0:00:31]} 69. Ke3 {[%clk 0:00:12]}  b3 {[%clk 0:00:31]} 70. Kd3 {[%clk 0:00:13]}  b2 {[%clk 0:00:31]} 71. Kc2 {[%clk 0:00:14]}  b1=Q+ {[%clk 0:00:31]} 72. Kxb1 {[%clk 0:00:15]}  Bd4 {[%clk 0:00:31]} 73. Kc2 {[%clk 0:00:16]}  f2 {[%clk 0:00:32]} 74. Kd3 {[%clk 0:00:17]}  Kc5 {[%clk 0:00:33]} 75. Ke2 {[%clk 0:00:17]}  Bc4+ {[%clk 0:00:34]} 76. Kd2 {[%clk 0:00:17]}  f1=Q {[%clk 0:00:34]} 77. Kc2 {[%clk 0:00:18]}  Qe2+ {[%clk 0:00:33]} 78. Kb1 {[%clk 0:00:19]}  Bd3+ {[%clk 0:00:33]} 79. Kc1 {[%clk 0:00:20]}  Qc2# {[%clk 0:00:32]} 0-1


[Site "https://www.chess.com"]

[Event "Titled Tuesday Blitz December 13 Early 2022"]
[White "Hoang, Canh Huan"]
[Black "Ezat, Mohamed"]
[WhiteFideId "12400599"]
[BlackFideId "10600906"]
[WhiteElo "2283"]
[BlackElo "2388"]
[Result "0-1"]
[Round "07"]
[TimeControl "180+1"]
[Date "2022.12.14"]
[WhiteClock "0:00:26"]
[BlackClock "0:01:29"]

1. Nf3 {[%clk 0:03:00]}  Nf6 {[%clk 0:02:59]} 2. g3 {[%clk 0:03:01]}  g6 {[%clk 0:03:00]} 3. Bg2 {[%clk 0:03:02]}  Bg7 {[%clk 0:03:00]} 4. O-O {[%clk 0:03:03]}  O-O {[%clk 0:03:01]} 5. d3 {[%clk 0:03:04]}  d6 {[%clk 0:03:01]} 6. Nbd2 {[%clk 0:03:04]}  Nc6 {[%clk 0:03:01]} 7. Re1 {[%clk 0:03:05]}  e5 {[%clk 0:03:01]} 8. c3 {[%clk 0:03:05]}  Re8 {[%clk 0:03:01]} 9. e4 {[%clk 0:03:05]}  d5 {[%clk 0:03:01]} 10. exd5 {[%clk 0:03:05]}  Nxd5 {[%clk 0:03:01]} 11. Ne4 {[%clk 0:03:05]}  h6 {[%clk 0:02:59]} 12. h4 {[%clk 0:03:02]}  f5 {[%clk 0:02:58]} 13. Nc5 {[%clk 0:03:01]}  b6 {[%clk 0:02:52]} 14. Na4 {[%clk 0:02:48]}  Ba6 {[%clk 0:02:47]} 15. h5 {[%clk 0:02:45]}  g5 {[%clk 0:02:46]} 16. Nxg5 {[%clk 0:02:35]}  hxg5 {[%clk 0:02:45]} 17. Qb3 {[%clk 0:02:35]}  Ne7 {[%clk 0:02:39]} 18. Bxg5 {[%clk 0:02:34]}  c6 {[%clk 0:02:38]} 19. h6 {[%clk 0:02:32]}  Bh8 {[%clk 0:02:35]} 20. c4 {[%clk 0:02:28]}  Nf6 {[%clk 0:02:32]} 21. c5+ {[%clk 0:02:24]}  Ned5 {[%clk 0:02:25]} 22. cxb6 {[%clk 0:02:07]}  axb6 {[%clk 0:02:18]} 23. Bxf6 {[%clk 0:02:07]}  Bxf6 {[%clk 0:02:09]} 24. Nc3 {[%clk 0:01:58]}  Bb7 {[%clk 0:02:01]} 25. d4 {[%clk 0:01:41]}  e4 {[%clk 0:01:58]} 26. g4 {[%clk 0:01:12]}  Kh8 {[%clk 0:01:50]} 27. gxf5 {[%clk 0:01:07]}  Nf4 {[%clk 0:01:38]} 28. Rxe4 {[%clk 0:00:26]}  Nxg2 {[%clk 0:01:29]} 0-1


[Site "https://www.chess.com"]

[Event "Titled Tuesday Blitz December 13 Early 2022"]
[White "Hoffmann, Asa"]
[Black "Lopez Idarraga, Daniel Eduardo"]
[WhiteFideId "2001470"]
[BlackFideId "4405501"]
[WhiteElo "2117"]
[BlackElo "2064"]
[Result "0-1"]
[Round "07"]
[TimeControl "180+1"]
[Date "2022.12.14"]
[WhiteClock "0:00:11"]
[BlackClock "0:00:17"]

1. d4 {[%clk 0:02:55]}  d5 {[%clk 0:02:59]} 2. Bg5 {[%clk 0:02:54]}  h6 {[%clk 0:02:55]} 3. Bh4 {[%clk 0:02:54]}  c5 {[%clk 0:02:55]} 4. e3 {[%clk 0:02:53]}  Qb6 {[%clk 0:02:54]} 5. Nc3 {[%clk 0:02:52]}  e6 {[%clk 0:02:52]} 6. Rb1 {[%clk 0:02:49]}  a6 {[%clk 0:02:51]} 7. Nf3 {[%clk 0:02:47]}  Nc6 {[%clk 0:02:51]} 8. Be2 {[%clk 0:02:47]}  Bd7 {[%clk 0:02:48]} 9. O-O {[%clk 0:02:46]}  Be7 {[%clk 0:02:43]} 10. Bg3 {[%clk 0:02:45]}  Nf6 {[%clk 0:02:42]} 11. h3 {[%clk 0:02:45]}  O-O {[%clk 0:02:41]} 12. Ne5 {[%clk 0:02:39]}  cxd4 {[%clk 0:02:39]} 13. Nxc6 {[%clk 0:02:36]}  bxc6 {[%clk 0:02:39]} 14. exd4 {[%clk 0:02:36]}  c5 {[%clk 0:02:37]} 15. dxc5 {[%clk 0:02:30]}  Bxc5 {[%clk 0:02:38]} 16. Be5 {[%clk 0:02:19]}  Rfc8 {[%clk 0:02:33]} 17. Bxf6 {[%clk 0:02:12]}  gxf6 {[%clk 0:02:34]} 18. Bd3 {[%clk 0:02:12]}  Bf8 {[%clk 0:02:28]} 19. Qg4+ {[%clk 0:02:05]}  Bg7 {[%clk 0:02:28]} 20. Ne2 {[%clk 0:01:57]}  f5 {[%clk 0:01:55]} 21. Qg3 {[%clk 0:01:50]}  Bb5 {[%clk 0:01:25]} 22. Nf4 {[%clk 0:01:46]}  Qd6 {[%clk 0:01:16]} 23. Qh4 {[%clk 0:01:07]}  Bxd3 {[%clk 0:01:03]} 24. cxd3 {[%clk 0:01:07]}  Rab8 {[%clk 0:00:58]} 25. b3 {[%clk 0:01:03]}  Rb4 {[%clk 0:00:57]} 26. g3 {[%clk 0:00:50]}  e5 {[%clk 0:00:55]} 27. Rbc1 {[%clk 0:00:41]}  Rxc1 {[%clk 0:00:46]} 28. Rxc1 {[%clk 0:00:41]}  exf4 {[%clk 0:00:46]} 29. Qh5 {[%clk 0:00:36]}  fxg3 {[%clk 0:00:35]} 30. Rc8+ {[%clk 0:00:34]}  Kh7 {[%clk 0:00:35]} 31. Qxf5+ {[%clk 0:00:34]}  Qg6 {[%clk 0:00:35]} 32. Qxg6+ {[%clk 0:00:32]}  fxg6 {[%clk 0:00:36]} 33. fxg3 {[%clk 0:00:32]}  Rd4 {[%clk 0:00:34]} 34. Rc6 {[%clk 0:00:30]}  Rxd3 {[%clk 0:00:34]} 35. Rxa6 {[%clk 0:00:29]}  Rxg3+ {[%clk 0:00:34]} 36. Kh2 {[%clk 0:00:29]}  Be5 {[%clk 0:00:32]} 37. Re6 {[%clk 0:00:27]}  Bf4 {[%clk 0:00:28]} 38. Rf6 {[%clk 0:00:23]}  g5 {[%clk 0:00:25]} 39. Rf5 {[%clk 0:00:20]}  Rxb3+ {[%clk 0:00:21]} 40. Kg2 {[%clk 0:00:19]}  Rb2+ {[%clk 0:00:21]} 41. Kf3 {[%clk 0:00:19]}  Rxa2 {[%clk 0:00:22]} 42. Rxd5 {[%clk 0:00:18]}  Kg6 {[%clk 0:00:21]} 43. Rb5 {[%clk 0:00:16]}  Kh5 {[%clk 0:00:20]} 44. Rb6 {[%clk 0:00:13]}  Ra3+ {[%clk 0:00:20]} 45. Kg2 {[%clk 0:00:13]}  Rg3+ {[%clk 0:00:21]} 46. Kf2 {[%clk 0:00:13]}  Be3+ {[%clk 0:00:18]} 47. Kxg3 {[%clk 0:00:12]}  Bxb6 {[%clk 0:00:19]} 48. h4 {[%clk 0:00:12]}  Bf2+ {[%clk 0:00:18]} 49. Kxf2 {[%clk 0:00:11]}  Kxh4 {[%clk 0:00:17]} 0-1


[Site "https://www.chess.com"]

[Event "Titled Tuesday Blitz December 13 Early 2022"]
[White "Ingebretsen, Jens E"]
[Black "Weetik, Vjacheslav"]
[WhiteFideId "1522965"]
[BlackFideId "4153472"]
[WhiteElo "2213"]
[BlackElo "2469"]
[Result "0-1"]
[Round "07"]
[TimeControl "180+1"]
[Date "2022.12.14"]
[WhiteClock "0:00:16"]
[BlackClock "0:00:11"]

1. f4 {[%clk 0:03:00]}  d5 {[%clk 0:02:55]} 2. Nf3 {[%clk 0:03:01]}  g6 {[%clk 0:02:55]} 3. b3 {[%clk 0:03:01]}  Bg7 {[%clk 0:02:55]} 4. Nc3 {[%clk 0:03:01]}  Nf6 {[%clk 0:02:49]} 5. Bb2 {[%clk 0:03:01]}  d4 {[%clk 0:02:42]} 6. Nb5 {[%clk 0:03:01]}  c5 {[%clk 0:02:42]} 7. e3 {[%clk 0:03:00]}  a6 {[%clk 0:02:33]} 8. Na3 {[%clk 0:02:59]}  Nc6 {[%clk 0:02:34]} 9. Nc4 {[%clk 0:02:58]}  O-O {[%clk 0:02:32]} 10. Be2 {[%clk 0:02:57]}  Nd5 {[%clk 0:02:27]} 11. Qc1 {[%clk 0:02:46]}  Bf5 {[%clk 0:01:48]} 12. O-O {[%clk 0:02:36]}  Ndb4 {[%clk 0:01:44]} 13. d3 {[%clk 0:02:08]}  b5 {[%clk 0:01:30]} 14. Nce5 {[%clk 0:02:01]}  Nxe5 {[%clk 0:01:27]} 15. Nxe5 {[%clk 0:02:02]}  dxe3 {[%clk 0:01:25]} 16. Bf3 {[%clk 0:01:57]}  Rc8 {[%clk 0:01:20]} 17. a3 {[%clk 0:01:56]}  Nd5 {[%clk 0:01:17]} 18. Bxd5 {[%clk 0:01:57]}  Qxd5 {[%clk 0:01:17]} 19. Qxe3 {[%clk 0:01:58]}  f6 {[%clk 0:01:02]} 20. Nf3 {[%clk 0:01:48]}  c4 {[%clk 0:01:02]} 21. dxc4 {[%clk 0:01:43]}  bxc4 {[%clk 0:01:02]} 22. Rad1 {[%clk 0:01:43]}  Qe4 {[%clk 0:00:52]} 23. Rfe1 {[%clk 0:01:15]}  Qxc2 {[%clk 0:00:45]} 24. Rd2 {[%clk 0:00:44]}  Qxb3 {[%clk 0:00:44]} 25. Qxb3 {[%clk 0:00:43]}  cxb3 {[%clk 0:00:44]} 26. Rxe7 {[%clk 0:00:44]}  Rc2 {[%clk 0:00:38]} 27. Rxc2 {[%clk 0:00:35]}  bxc2 {[%clk 0:00:37]} 28. Nd4 {[%clk 0:00:35]}  Rb8 {[%clk 0:00:33]} 29. Bc1 {[%clk 0:00:34]}  Rb1 {[%clk 0:00:32]} 30. Re1 {[%clk 0:00:34]}  Bd3 {[%clk 0:00:27]} 31. Kf2 {[%clk 0:00:33]}  f5 {[%clk 0:00:27]} 32. Ke3 {[%clk 0:00:33]}  Be4 {[%clk 0:00:23]} 33. g4 {[%clk 0:00:34]}  Kf7 {[%clk 0:00:19]} 34. gxf5 {[%clk 0:00:34]}  gxf5 {[%clk 0:00:20]} 35. Ne2 {[%clk 0:00:30]}  Bf8 {[%clk 0:00:15]} 36. Kd4 {[%clk 0:00:21]}  Bxa3 {[%clk 0:00:14]} 37. Kc3 {[%clk 0:00:16]}  Bb4+ {[%clk 0:00:11]} 0-1


[Site "https://www.chess.com"]

[Event "Titled Tuesday Blitz December 13 Early 2022"]
[White "Ionescu, Mihai"]
[Black "Seifert, Henryk"]
[WhiteFideId "1202499"]
[BlackFideId "1100963"]
[WhiteElo "2284"]
[BlackElo "2120"]
[Result "0-1"]
[Round "07"]
[TimeControl "180+1"]
[Date "2022.12.14"]
[WhiteClock "0:00:01"]
[BlackClock "0:00:03"]

1. e4 {[%clk 0:03:00]}  e6 {[%clk 0:02:59]} 2. d4 {[%clk 0:02:58]}  d5 {[%clk 0:02:59]} 3. Nd2 {[%clk 0:02:56]}  Nf6 {[%clk 0:02:57]} 4. e5 {[%clk 0:02:56]}  Nfd7 {[%clk 0:02:57]} 5. f4 {[%clk 0:02:54]}  c5 {[%clk 0:02:57]} 6. c3 {[%clk 0:02:55]}  Nc6 {[%clk 0:02:57]} 7. Ndf3 {[%clk 0:02:55]}  Qb6 {[%clk 0:02:57]} 8. Ne2 {[%clk 0:02:53]}  f6 {[%clk 0:02:55]} 9. exf6 {[%clk 0:02:43]}  Nxf6 {[%clk 0:02:54]} 10. g3 {[%clk 0:02:43]}  Bd6 {[%clk 0:02:40]} 11. Bg2 {[%clk 0:02:26]}  O-O {[%clk 0:02:36]} 12. O-O {[%clk 0:02:26]}  cxd4 {[%clk 0:02:31]} 13. cxd4 {[%clk 0:02:24]}  e5 {[%clk 0:01:58]} 14. fxe5 {[%clk 0:02:11]}  Nxe5 {[%clk 0:01:56]} 15. Nxe5 {[%clk 0:01:56]}  Bxe5 {[%clk 0:01:57]} 16. Kh1 {[%clk 0:01:37]}  Bd6 {[%clk 0:01:53]} 17. Nc3 {[%clk 0:01:27]}  Be6 {[%clk 0:01:41]} 18. Bg5 {[%clk 0:00:47]}  Qxb2 {[%clk 0:01:03]} 19. Qe2 {[%clk 0:00:10]}  Qxe2 {[%clk 0:00:57]} 20. Nxe2 {[%clk 0:00:11]}  Ne4 {[%clk 0:00:52]} 21. Bf4 {[%clk 0:00:09]}  Bb4 {[%clk 0:00:37]} 22. Rac1 {[%clk 0:00:04]}  Rac8 {[%clk 0:00:35]} 23. Rc7 {[%clk 0:00:04]}  Rxc7 {[%clk 0:00:33]} 24. Bxc7 {[%clk 0:00:04]}  Rxf1+ {[%clk 0:00:32]} 25. Bxf1 {[%clk 0:00:05]}  Nd2 {[%clk 0:00:27]} 26. Nf4 {[%clk 0:00:05]}  Nxf1 {[%clk 0:00:21]} 27. Nxe6 {[%clk 0:00:05]}  Ne3 {[%clk 0:00:20]} 28. Nf4 {[%clk 0:00:05]}  g5 {[%clk 0:00:18]} 29. Nd3 {[%clk 0:00:05]}  Be7 {[%clk 0:00:16]} 30. Kg1 {[%clk 0:00:05]}  Nc2 {[%clk 0:00:15]} 31. Be5 {[%clk 0:00:04]}  Nb4 {[%clk 0:00:12]} 32. Nxb4 {[%clk 0:00:03]}  Bxb4 {[%clk 0:00:12]} 33. Kf2 {[%clk 0:00:04]}  Kf7 {[%clk 0:00:12]} 34. Kf3 {[%clk 0:00:03]}  h5 {[%clk 0:00:12]} 35. g4 {[%clk 0:00:02]}  h4 {[%clk 0:00:09]} 36. Ke2 {[%clk 0:00:02]}  Ke6 {[%clk 0:00:08]} 37. Kd3 {[%clk 0:00:02]}  Be7 {[%clk 0:00:07]} 38. Kc2 {[%clk 0:00:02]}  b5 {[%clk 0:00:06]} 39. Kb3 {[%clk 0:00:02]}  a5 {[%clk 0:00:05]} 40. a4 {[%clk 0:00:02]}  bxa4+ {[%clk 0:00:04]} 41. Kxa4 {[%clk 0:00:03]}  Bb4 {[%clk 0:00:04]} 42. Kb5 {[%clk 0:00:03]}  h3 {[%clk 0:00:04]} 43. Bg3 {[%clk 0:00:03]}  Bd2 {[%clk 0:00:04]} 44. Be5 {[%clk 0:00:01]}  Be3 {[%clk 0:00:03]} 0-1


[Site "https://www.chess.com"]

[Event "Titled Tuesday Blitz December 13 Early 2022"]
[White "Jaskolka, Tomasz"]
[Black "Fernandez De La Vara, Arnaldo"]
[WhiteFideId "1170791"]
[BlackFideId "3518388"]
[WhiteElo "2126"]
[BlackElo "2387"]
[Result "0-1"]
[Round "07"]
[TimeControl "180+1"]
[Date "2022.12.14"]
[WhiteClock "0:02:26"]
[BlackClock "0:02:23"]

1. d4 {[%clk 0:03:00]}  c5 {[%clk 0:03:00]} 2. e3 {[%clk 0:02:58]}  Nf6 {[%clk 0:03:01]} 3. Nf3 {[%clk 0:02:58]}  d5 {[%clk 0:03:01]} 4. c3 {[%clk 0:02:58]}  Nc6 {[%clk 0:03:02]} 5. b3 {[%clk 0:02:58]}  e6 {[%clk 0:03:02]} 6. Bb2 {[%clk 0:02:59]}  Qc7 {[%clk 0:03:02]} 7. Nbd2 {[%clk 0:02:59]}  Bd6 {[%clk 0:03:02]} 8. Bd3 {[%clk 0:03:00]}  O-O {[%clk 0:03:01]} 9. O-O {[%clk 0:02:57]}  b6 {[%clk 0:03:01]} 10. Re1 {[%clk 0:02:55]}  Bb7 {[%clk 0:03:01]} 11. e4 {[%clk 0:02:56]}  cxd4 {[%clk 0:02:55]} 12. cxd4 {[%clk 0:02:55]}  Nb4 {[%clk 0:02:49]} 13. Bb1 {[%clk 0:02:45]}  dxe4 {[%clk 0:02:48]} 14. Ng5 {[%clk 0:02:45]}  Bxh2+ {[%clk 0:02:46]} 15. Kh1 {[%clk 0:02:42]}  Nd3 {[%clk 0:02:42]} 16. Bxd3 {[%clk 0:02:42]}  exd3 {[%clk 0:02:43]} 17. Ndf3 {[%clk 0:02:32]}  Ng4 {[%clk 0:02:30]} 18. Rf1 {[%clk 0:02:27]}  Bf4 {[%clk 0:02:22]} 19. Qxd3 {[%clk 0:02:26]}  Bxg5 {[%clk 0:02:22]} 20. Nxg5 {[%clk 0:02:26]}  Qh2# {[%clk 0:02:23]} 0-1


[Site "https://www.chess.com"]

[Event "Titled Tuesday Blitz December 13 Early 2022"]
[White "Jumanov, Elbek"]
[Black "Bazarov, Konstantin"]
[WhiteFideId "14202905"]
[BlackFideId "4137000"]
[WhiteElo "2055"]
[BlackElo "2228"]
[Result "1-0"]
[Round "07"]
[TimeControl "180+1"]
[Date "2022.12.14"]
[WhiteClock "0:00:02"]
[BlackClock "0:00:02"]

1. c4 {[%clk 0:02:56]}  b6 {[%clk 0:02:57]} 2. g3 {[%clk 0:02:54]}  Bb7 {[%clk 0:02:57]} 3. Nf3 {[%clk 0:02:55]}  e5 {[%clk 0:02:56]} 4. Bg2 {[%clk 0:02:54]}  Nf6 {[%clk 0:02:55]} 5. O-O {[%clk 0:02:51]}  e4 {[%clk 0:02:53]} 6. Nd4 {[%clk 0:02:51]}  c5 {[%clk 0:02:48]} 7. Nc2 {[%clk 0:02:49]}  Qc7 {[%clk 0:02:48]} 8. Nc3 {[%clk 0:02:49]}  Be7 {[%clk 0:02:46]} 9. Ne3 {[%clk 0:02:48]}  Qe5 {[%clk 0:02:43]} 10. Qc2 {[%clk 0:02:45]}  Nc6 {[%clk 0:02:42]} 11. b3 {[%clk 0:02:37]}  Nd4 {[%clk 0:02:31]} 12. Qb1 {[%clk 0:02:36]}  O-O {[%clk 0:02:28]} 13. Re1 {[%clk 0:02:36]}  Rfe8 {[%clk 0:02:23]} 14. Bb2 {[%clk 0:02:35]}  Bf8 {[%clk 0:02:20]} 15. Nb5 {[%clk 0:02:06]}  a6 {[%clk 0:02:16]} 16. Nxd4 {[%clk 0:02:04]}  cxd4 {[%clk 0:02:15]} 17. Nc2 {[%clk 0:02:05]}  Qh5 {[%clk 0:02:00]} 18. Nxd4 {[%clk 0:01:56]}  Ng4 {[%clk 0:01:52]} 19. h3 {[%clk 0:01:56]}  Ne5 {[%clk 0:01:50]} 20. g4 {[%clk 0:01:48]}  Qg6 {[%clk 0:01:49]} 21. f4 {[%clk 0:01:17]}  exf3 {[%clk 0:01:42]} 22. Qxg6 {[%clk 0:01:16]}  hxg6 {[%clk 0:01:40]} 23. exf3 {[%clk 0:01:16]}  Nd3 {[%clk 0:01:39]} 24. Rxe8 {[%clk 0:01:12]}  Rxe8 {[%clk 0:01:38]} 25. Bc3 {[%clk 0:01:12]}  Bc5 {[%clk 0:01:34]} 26. Kf1 {[%clk 0:01:12]}  f6 {[%clk 0:01:08]} 27. h4 {[%clk 0:01:03]}  Kf7 {[%clk 0:01:07]} 28. a3 {[%clk 0:00:55]}  Rh8 {[%clk 0:01:05]} 29. b4 {[%clk 0:00:49]}  Bd6 {[%clk 0:01:04]} 30. Ke2 {[%clk 0:00:39]}  Nf4+ {[%clk 0:01:03]} 31. Kf2 {[%clk 0:00:40]}  Rxh4 {[%clk 0:01:01]} 32. Rh1 {[%clk 0:00:40]}  Nxg2 {[%clk 0:00:53]} 33. Kxg2 {[%clk 0:00:40]}  Rxg4+ {[%clk 0:00:52]} 34. Kf2 {[%clk 0:00:38]}  Rf4 {[%clk 0:00:51]} 35. Ke3 {[%clk 0:00:34]}  g5 {[%clk 0:00:42]} 36. Rh3 {[%clk 0:00:33]}  g4 {[%clk 0:00:40]} 37. fxg4 {[%clk 0:00:31]}  Rxg4 {[%clk 0:00:40]} 38. Nf5 {[%clk 0:00:31]}  Bf8 {[%clk 0:00:38]} 39. d4 {[%clk 0:00:28]}  Rg5 {[%clk 0:00:36]} 40. Kf4 {[%clk 0:00:25]}  Rg1 {[%clk 0:00:27]} 41. d5 {[%clk 0:00:24]}  b5 {[%clk 0:00:25]} 42. Ne3 {[%clk 0:00:19]}  bxc4 {[%clk 0:00:23]} 43. a4 {[%clk 0:00:18]}  Rc1 {[%clk 0:00:21]} 44. Nxc4 {[%clk 0:00:14]}  Bxd5 {[%clk 0:00:19]} 45. Nb6 {[%clk 0:00:14]}  Be6 {[%clk 0:00:17]} 46. Rd3 {[%clk 0:00:13]}  g5+ {[%clk 0:00:15]} 47. Ke4 {[%clk 0:00:13]}  f5+ {[%clk 0:00:14]} 48. Ke3 {[%clk 0:00:12]}  f4+ {[%clk 0:00:14]} 49. Kd2 {[%clk 0:00:12]}  Rh1 {[%clk 0:00:12]} 50. Nxd7 {[%clk 0:00:12]}  Rh2+ {[%clk 0:00:11]} 51. Ke1 {[%clk 0:00:12]}  Bxd7 {[%clk 0:00:09]} 52. Rxd7+ {[%clk 0:00:12]}  Ke6 {[%clk 0:00:10]} 53. Ra7 {[%clk 0:00:10]}  Kf5 {[%clk 0:00:10]} 54. Rxa6 {[%clk 0:00:10]}  Ke4 {[%clk 0:00:10]} 55. Re6+ {[%clk 0:00:10]}  Kd3 {[%clk 0:00:09]} 56. Bf6 {[%clk 0:00:10]}  Bxb4+ {[%clk 0:00:09]} 57. Kf1 {[%clk 0:00:09]}  g4 {[%clk 0:00:08]} 58. Bg5 {[%clk 0:00:06]}  Bd2 {[%clk 0:00:07]} 59. Rd6+ {[%clk 0:00:05]}  Ke4 {[%clk 0:00:07]} 60. Re6+ {[%clk 0:00:04]}  Kf3 {[%clk 0:00:07]} 61. Kg1 {[%clk 0:00:03]}  Re2 {[%clk 0:00:07]} 62. Rxe2 {[%clk 0:00:02]}  Kxe2 {[%clk 0:00:06]} 63. a5 {[%clk 0:00:03]}  Be3+ {[%clk 0:00:02]} 64. Kh2 {[%clk 0:00:02]}  f3 {[%clk 0:00:02]} 65. Bh4 {[%clk 0:00:01]}  f2 {[%clk 0:00:02]} 66. Bxf2 {[%clk 0:00:01]}  Bxf2 {[%clk 0:00:02]} 67. Kg2 {[%clk 0:00:02]} 1-0


[Site "https://www.chess.com"]